bitfinex/quotes_ETHUSD_20241207
["timestamp","ask_amount","ask_price","bid_price","bid_amount"]
[1733562067685,1.7572,3983.6,3983.2,0.8126]
[1733562068600,0.8055,3984.0,3983.2,0.8126]
[1733562068946,3.25610221,3984.6,3983.5,0.8126]
[1733562068947,1.75709,3983.9,3983.5,0.8126]
[1733562070265,0.03137654,3984.1,3983.5,0.8126]
[1733562070471,1.75712,3983.8,3983.5,0.8126]
[1733562071576,0.03137673,3983.7,3983.2,0.8126]
[1733562071781,1.75725,3983.5,3983.2,0.8126]
[1733562072081,1.75729,3983.4,3983.2,0.8126]
[1733562072907,1.75721,3983.6,3983.2,0.8126]
[1733562073778,1.75727,3983.5,3983.2,0.8126]
[1733562074008,1.75729,3983.4,3983.2,0.8126]
[1733562081292,2.56257,3983.9,3983.2,0.8126]
[1733562081495,0.41297973,3983.8,3983.2,0.8126]
[1733562081694,1.75721,3983.6,3983.2,0.8126]
[1733562082506,1.75725,3983.5,3983.2,0.8126]
[1733562084499,1.75733,3983.3,3983.2,0.8126]
[1733562084808,1.75733,3983.3,3982.9,0.8149]
[1733562086406,1.75738,3983.2,3982.9,0.8149]
[1733562088112,1.30026229,3983.6,3982.9,0.8149]
[1733562088432,1.7573,3983.4,3982.9,0.8149]
[1733562090223,1.7573,3983.4,3983.1,1.0868238]
[1733562091020,1.0462821,3983.7,3983.1,1.0868238]
[1733562091207,2.16756941,3983.6,3983.1,1.0868238]
[1733562091430,2.62427776,3983.5,3983.1,1.0868238]
[1733562091738,0.8672765,3983.4,3983.1,1.0868238]
[1733562091936,1.75725,3983.5,3983.1,1.0868238]
[1733562092144,0.86728052,3983.4,3983.1,1.0868238]
[1733562092346,1.0462821,3983.6,3983.3,1.0868238]
[1733562092547,1.0462821,3983.8,3983.4,0.8149]
[1733562092749,1.0462821,3983.9,3983.4,0.8149]
[1733562093046,3.32641316,3984.1,3983.5,1.86617018]
[1733562093047,1.0462821,3984.1,3983.5,1.86617018]
[1733562093351,1.0462821,3984.3,3983.7,0.8149]
[1733562093562,1.0462821,3984.4,3984.3,0.7775]
[1733562093846,3.21461961,3984.4,3984.3,0.7775]
[1733562094205,2.16833751,3984.4,3984.3,0.7775]
[1733562094408,0.867335,3984.4,3984.3,0.7775]
[1733562095049,4.02896056,3984.6,3984.3,0.7775]
[1733562095252,2.16779185,3984.5,3984.3,0.7775]
[1733562095449,4.02896056,3984.6,3984.3,0.7775]
[1733562095450,2.98267846,3984.6,3984.3,0.7775]
[1733562095639,0.86685952,3984.5,3984.3,0.7775]
[1733562095849,2.98267846,3984.6,3984.3,0.7775]
[1733562096154,1.22591846,3984.6,3984.3,0.7775]
[1733562096712,1.22591846,3984.6,3984.5,1.0868238]
[1733562098224,1.22591846,3984.6,3984.5,1.27325618]
[1733562098752,1.22591846,3984.6,3984.5,2.07235618]
[1733562099424,1.7565,3985.2,3984.5,2.07235618]
[1733562099619,1.7565,3985.2,3984.9,1.0868238]
[1733562103650,0.8202,3985.6,3984.9,1.0868238]
[1733562103833,1.7566,3985.0,3984.6,1.0868238]
[1733562107276,0.25765,3985.5,3984.6,1.0868238]
[1733562107566,1.75649,3985.2,3984.6,1.0868238]
[1733562107927,1.75655,3985.1,3984.6,1.0868238]
[1733562108555,1.75659,3985.0,3984.5,0.7991]
[1733562108753,1.75659,3985.0,3984.6,1.0868238]
[1733562110672,1.75663,3984.9,3984.6,1.0868238]
[1733562111542,0.999563,3984.9,3983.9,0.7991]
[1733562111876,0.999563,3984.9,3984.0,1.0868238]
[1733562111877,1.75685,3984.4,3984.0,1.0868238]
[1733562112792,0.8239,3984.9,3983.9,0.7991]
[1733562112996,1.75704,3984.0,3983.8,1.0868238]
[1733562113687,1.75694,3984.2,3983.8,1.0868238]
[1733562114373,1.75694,3984.2,3983.9,0.8222]
[1733562114593,1.75694,3984.2,3984.1,1.0868238]
[1733562115090,1.75684,3984.5,3984.1,1.0868238]
[1733562115401,2.8026921,3985.4,3984.4,1.9090238]
[1733562115402,2.51393,3985.4,3984.4,1.9090238]
[1733562115612,1.75659,3985.0,3984.7,1.0868238]
[1733562116677,0.7575,3984.9,3984.1,0.19090238]
[1733562116994,0.7575,3984.9,3984.3,1.0868238]
[1733562117157,1.008904,3984.9,3984.3,1.0868238]
[1733562118693,1.008904,3984.9,3984.1,0.8222]
[1733562118857,1.75691,3984.3,3984.1,0.8222]
[1733562119059,1.75693,3984.2,3984.0,1.0868238]
[1733562119880,1.75671,3984.7,3984.0,1.0868238]
[1733562120155,1.75699,3984.1,3983.8,0.7503]
[1733562121098,1.75699,3984.1,3983.7,1.0868238]
[1733562121625,1.75702,3984.0,3983.7,1.0868238]
[1733562122786,1.75695,3984.2,3983.7,1.0868238]
[1733562124283,1.75695,3984.2,3984.0,1.0868238]
[1733562124490,0.7899,3984.7,3984.1,0.8003]
[1733562124807,1.75685,3984.4,3984.1,0.8003]
[1733562125516,0.9907104,3984.7,3984.1,0.8003]
[1733562125687,1.7569,3984.3,3984.1,0.8003]
[1733562126975,1.7569,3984.3,3984.0,1.0868238]
[1733562128306,0.03137424,3984.2,3983.1,0.8003]
[1733562128490,1.75712,3983.8,3983.6,1.0868238]
[1733562129283,1.75712,3983.8,3983.1,0.8003]
[1733562129482,0.7899,3984.0,3983.3,1.0868238]
[1733562129483,1.75716,3983.7,3983.3,1.0868238]
[1733562129840,0.7899,3984.0,3983.2,1.0868238]
[1733562129841,1.75707,3983.9,3983.2,1.0868238]
[1733562130016,1.75723,3983.6,3983.2,1.0868238]
[1733562131083,1.75723,3983.6,3983.2,1.8871238]
[1733562132118,1.75709,3983.9,3983.5,1.0868238]
[1733562134517,0.7899,3984.3,3983.5,1.0868238]
[1733562135019,1.75707,3983.9,3983.5,1.0868238]
[1733562137828,1.75713,3983.8,3983.5,1.0868238]
[1733562138122,1.78833659,3984.2,3983.5,1.0868238]
[1733562138332,0.43351066,3984.1,3983.5,1.0868238]
[1733562138531,0.03137683,3984.0,3983.5,1.0868238]
[1733562138732,1.75711,3983.9,3983.5,1.0868238]
[1733562141827,0.7652,3984.6,3983.8,1.0868238]
[1733562142012,1.75672,3984.7,3984.3,1.0868238]
[1733562142403,1.75672,3984.7,3984.4,0.8082]
[1733562143604,1.7566,3985.0,3984.6,1.0868238]
[1733562144028,1.75664,3984.9,3984.6,1.0868238]
[1733562144468,0.7652,3985.3,3984.6,1.0868238]
[1733562144656,0.252159,3985.2,3984.6,1.0868238]
[1733562146038,1.75654,3985.1,3984.6,1.0868238]
[1733562146439,0.252159,3985.2,3984.6,1.0868238]
[1733562146636,1.75659,3985.0,3984.6,1.0868238]
[1733562147070,2.52169,3985.3,3984.6,1.0868238]
[1733562147254,1.75649,3985.3,3984.9,1.0868238]
[1733562147939,1.75636,3985.5,3984.9,1.0868238]
[1733562148563,1.75628,3985.7,3985.0,0.8082]
[1733562149655,3.10882388,3986.1,3985.0,0.8082]
[1733562149857,0.6434327,3986.1,3985.6,0.8082]
[1733562150064,1.7561,3986.2,3985.6,0.8082]
[1733562150866,3.10877757,3986.7,3985.8,1.0868238]
[1733562151047,1.75602,3986.3,3985.8,1.0868238]
[1733562151883,0.7652,3986.7,3985.8,1.0868238]
[1733562152069,1.75615,3986.0,3985.8,1.0868238]
[1733562152393,0.7652,3986.7,3985.8,1.0868238]
[1733562152555,1.75606,3986.2,3985.8,1.0868238]
[1733562156694,0.7652,3986.7,3985.8,1.0868238]
[1733562157113,1.75615,3986.0,3985.6,0.8082]
[1733562161894,1.7562,3985.9,3985.6,0.8082]
[1733562164034,0.0313599,3986.0,3984.9,0.7881]
[1733562164243,1.75641,3985.4,3985.1,1.0868238]
[1733562164541,1.75641,3985.4,3984.9,0.7881]
[1733562164542,1.75648,3985.3,3984.9,0.7881]
[1733562164742,0.8231,3985.5,3985.1,1.0868238]
[1733562164945,1.75641,3985.4,3985.1,1.0868238]
[1733562166015,0.8231,3985.8,3985.1,1.0868238]
[1733562166333,1.75645,3985.3,3985.1,1.0868238]
[1733562167260,1.75649,3985.2,3985.1,1.0868238]
[1733562167467,1.081029,3985.8,3983.7,1.05127018]
[1733562167468,1.75663,3984.9,3984.6,0.7881]
[1733562170324,1.75663,3984.9,3984.6,1.8749238]
[1733562170659,1.75651,3985.2,3984.6,1.8749238]
[1733562170970,1.75655,3985.1,3984.6,1.8749238]
[1733562172545,1.75663,3984.9,3984.6,1.8749238]
[1733562173225,0.8231,3985.4,3984.6,1.8749238]
[1733562173425,0.257949,3985.3,3984.6,1.8749238]
[1733562173653,1.75656,3985.1,3984.6,1.8749238]
[1733562173861,0.8231,3985.4,3984.6,1.8749238]
[1733562174065,2.57955,3985.4,3984.6,1.8749238]
[1733562174527,1.75647,3985.3,3984.6,1.8749238]
[1733562176030,2.014189,3985.8,3984.9,1.0868238]
[1733562176031,0.7753,3985.7,3984.9,1.0868238]
[1733562176194,0.7753,3985.7,3985.2,1.0868238]
[1733562176195,2.53162,3985.7,3985.2,1.0868238]
[1733562176395,0.7753,3985.7,3985.0,0.7781]
[1733562176595,1.75642,3985.4,3985.0,0.7781]
[1733562176894,0.7753,3985.7,3985.0,0.7781]
[1733562177205,1.75632,3985.6,3985.0,0.7781]
[1733562178135,1.75636,3985.5,3985.0,0.7781]
[1733562179021,1.75641,3985.4,3985.0,0.7781]
[1733562179490,0.7753,3985.7,3985.0,0.7781]
[1733562179693,1.75632,3985.6,3985.0,0.7781]
[1733562179914,1.75638,3985.5,3985.0,0.7781]
[1733562180115,1.75641,3985.4,3984.9,1.0868238]
[1733562180301,1.7565,3985.2,3984.7,0.7913]
[1733562180513,1.75653,3985.2,3984.7,0.7913]
[1733562180734,1.93531975,3985.2,3984.7,0.7913]
[1733562181096,0.17878975,3985.2,3984.7,0.7913]
[1733562181400,0.253162,3985.6,3984.6,1.0868238]
[1733562181401,0.7649,3985.4,3984.6,1.0868238]
[1733562182536,1.75666,3984.9,3984.4,1.8781238]
[1733562183037,1.75668,3984.8,3984.4,1.8781238]
[1733562184100,1.75672,3984.7,3984.2,1.0868238]
[1733562184299,1.75678,3984.6,3984.2,1.0868238]
[1733562185537,1.75681,3984.5,3984.2,1.0868238]
[1733562185736,0.7649,3984.8,3984.1,0.7913]
[1733562186054,0.7649,3984.8,3983.8,1.8781238]
[1733562186055,1.75698,3984.1,3983.8,1.8781238]
[1733562187936,1.75692,3984.3,3983.8,1.8781238]
[1733562188137,1.75671,3984.7,3983.8,1.8781238]
[1733562189121,0.7649,3984.8,3983.8,1.8781238]
[1733562189344,1.75689,3984.4,3983.8,1.8781238]
[1733562189660,1.75689,3984.3,3983.8,1.8781238]
[1733562190029,1.75698,3984.2,3983.8,1.8781238]
[1733562190348,1.757,3984.1,3983.8,1.8781238]
[1733562190727,0.03137495,3984.5,3983.8,1.8781238]
[1733562190919,1.75707,3983.9,3983.8,1.0868238]
[1733562191246,1.75707,3983.9,3983.5,0.7913]
[1733562191247,1.75712,3983.8,3983.5,1.8781238]
[1733562193382,1.7572,3983.6,3983.2,0.7913]
[1733562193676,1.7572,3983.6,3983.3,1.0868238]
[1733562195246,1.75708,3983.9,3983.3,1.0868238]
[1733562195436,2.008837,3984.8,3983.7,1.8904238]
[1733562195437,0.7973,3984.3,3983.7,1.8904238]
[1733562195777,1.75694,3984.2,3983.7,1.8904238]
[1733562196638,1.7568,3984.5,3983.7,0.8036]
[1733562196832,1.75698,3984.2,3983.7,0.8036]
[1733562197255,0.7973,3984.9,3983.8,0.8036]
[1733562197455,1.75678,3984.6,3983.8,0.8036]
[1733562198432,2.55393,3984.9,3984.1,2.35794555]
[1733562198668,1.75669,3984.8,3984.2,0.7594]
[1733562199035,1.75671,3984.7,3984.2,0.7594]
[1733562200865,1.75671,3984.7,3984.2,0.608322]
[1733562201047,1.75671,3984.7,3984.2,0.457244]
[1733562201256,1.75659,3985.0,3984.2,0.457244]
[1733562201448,1.75647,3985.3,3984.2,3.28151896]
[1733562201750,1.75647,3985.3,3984.2,0.13044096]
[1733562202083,1.75647,3985.3,3984.5,2.20686755]
[1733562202249,1.75635,3985.6,3984.3,0.1887371]
[1733562202449,0.8326,3985.8,3984.5,2.20686755]
[1733562203558,0.8326,3985.8,3984.5,2.05578955]
[1733562203794,0.8313,3986.1,3984.6,3.0]
[1733562203953,1.75623,3985.8,3984.9,2.20686755]
[1733562204326,0.175623,3985.7,3984.9,2.20686755]
[1733562204487,0.175623,3985.7,3985.0,0.7673]
[1733562205599,1.75608,3986.2,3985.0,0.7673]
[1733562206801,1.75619,3985.9,3985.0,0.7673]
[1733562207675,0.8313,3986.4,3985.0,0.7673]
[1733562208418,0.8313,3986.6,3985.0,3.0]
[1733562208710,1.75605,3986.3,3985.3,2.35794555]
[1733562208876,1.75605,3986.3,3985.4,0.7673]
[1733562211314,0.03135943,3986.2,3985.4,0.7673]
[1733562211475,0.36333921,3986.5,3985.4,0.7673]
[1733562211860,1.75606,3986.2,3985.4,0.7673]
[1733562212014,0.17874194,3986.1,3985.4,0.7673]
[1733562214115,1.93485194,3986.1,3985.4,0.7673]
[1733562214336,0.17874194,3986.1,3985.4,0.7673]
[1733562214613,1.7561,3986.2,3985.4,0.7673]
[1733562214813,1.7561,3986.1,3985.4,0.7673]
[1733562215194,1.7561,3986.1,3985.4,0.7173]
[1733562217125,1.7562,3985.9,3985.4,0.7173]
[1733562218525,1.7562,3985.9,3985.5,1.0873336]
[1733562218833,1.75609,3986.2,3985.6,0.7816]
[1733562219132,0.175609,3986.1,3985.6,0.7816]
[1733562220025,0.175609,3986.1,3985.8,1.0873336]
[1733562220229,1.75597,3986.4,3985.9,0.7816]
[1733562221703,1.0462821,3987.2,3986.2,0.7816]
[1733562221704,2.57864,3987.2,3986.2,0.7816]
[1733562222029,1.7558,3986.8,3986.2,0.7816]
[1733562222525,1.75566,3987.1,3986.2,0.7816]
[1733562222826,0.26100144,3987.0,3986.2,0.7816]
[1733562223030,0.03135519,3986.9,3986.2,0.7816]
[1733562223394,0.26100144,3987.0,3986.2,0.7816]
[1733562223920,1.75585,3986.7,3986.2,0.7816]
[1733562224114,1.75588,3986.6,3986.2,0.7816]
[1733562224294,0.175588,3986.5,3986.2,0.7816]
[1733562225816,2.98058782,3987.4,3986.2,0.7816]
[1733562225817,1.75569,3987.1,3986.2,0.7816]
[1733562228533,1.75569,3987.1,3986.3,0.7816]
[1733562229898,1.75557,3987.3,3986.3,0.7816]
[1733562230099,1.75577,3986.9,3986.3,0.7816]
[1733562230400,0.175577,3986.8,3986.3,0.7816]
[1733562235114,1.931367,3986.8,3986.3,0.7816]
[1733562239564,1.75575,3986.9,3986.3,0.7816]
[1733562239752,1.75557,3987.3,3986.3,0.7816]
[1733562240057,1.22505782,3987.4,3986.3,0.7816]
[1733562240058,1.75566,3987.1,3986.3,0.7816]
[1733562240272,1.75588,3986.6,3986.3,0.7816]
[1733562240827,1.75597,3986.4,3985.9,0.8255]
[1733562241130,0.175588,3986.6,3985.9,0.8255]
[1733562241131,1.75614,3986.0,3985.9,0.8255]
[1733562241332,1.75621,3985.9,3985.4,0.8255]
[1733562241547,0.773,3986.5,3985.4,0.8255]
[1733562241890,1.75601,3986.3,3985.4,0.8255]
[1733562242060,0.252901,3986.2,3985.4,0.8255]
[1733562242433,1.75625,3985.8,3985.4,0.8255]
[1733562242645,1.0462821,3987.0,3985.4,0.8255]
[1733562242839,1.75618,3986.0,3985.4,0.8255]
[1733562243069,1.75597,3986.4,3985.4,0.8505889]
[1733562243239,0.175597,3986.3,3985.4,0.8505889]
[1733562243438,1.75614,3986.1,3985.4,0.8505889]
[1733562243638,1.75617,3986.0,3985.4,0.8255]
[1733562244030,1.75617,3986.0,3985.4,0.85058889]
[1733562244228,1.75604,3986.3,3985.4,0.8255]
[1733562244530,0.03135823,3986.6,3985.6,0.8255]
[1733562244758,1.75612,3986.1,3985.6,0.8255]
[1733562246175,0.773,3987.3,3985.6,0.8255]
[1733562246341,1.75598,3986.4,3985.6,0.8255]
[1733562246536,1.75598,3986.4,3985.8,1.0871179]
[1733562246743,1.75601,3986.3,3985.9,0.19126179]
[1733562247466,1.75592,3986.5,3985.9,0.19126179]
[1733562247786,1.75592,3986.5,3986.0,0.8255]
[1733562247940,1.75584,3986.7,3986.1,1.0871179]
[1733562248143,1.75584,3986.7,3986.5,0.8255]
[1733562249278,1.30053425,3987.1,3986.5,0.8255]
[1733562249583,2.79703413,3987.4,3986.5,0.8255]
[1733562249584,1.75576,3986.9,3986.5,0.8255]
[1733562250450,1.75581,3986.8,3986.5,0.8255]
[1733562250864,2.5266972,3987.4,3986.5,0.8255]
[1733562250865,1.75584,3986.7,3986.5,0.8255]
[1733562252858,1.75574,3987.0,3986.5,0.8255]
[1733562253072,2.27304202,3987.4,3986.5,0.8255]
[1733562253073,1.75575,3986.9,3986.5,0.8255]
[1733562253289,1.7558,3986.8,3986.5,0.8255]
[1733562255306,1.75584,3986.7,3986.5,0.8255]
[1733562256798,1.75573,3987.0,3986.5,0.8255]
[1733562257369,2.91039085,3987.4,3986.5,0.8255]
[1733562257570,1.75575,3986.9,3986.5,0.8255]
[1733562258283,1.75566,3987.1,3986.5,0.8255]
[1733562259378,1.22505782,3987.4,3986.5,0.8255]
[1733562259578,0.86830742,3987.3,3986.5,0.8255]
[1733562259876,1.75566,3987.1,3986.5,0.8255]
[1733562260257,1.22505782,3987.4,3986.5,0.8255]
[1733562260258,1.75575,3986.9,3986.5,0.8255]
[1733562261660,1.75575,3986.9,3986.2,0.98038797]
[1733562262286,1.75578,3986.9,3986.2,0.98038797]
[1733562263087,1.75587,3986.7,3986.2,0.98038797]
[1733562263295,1.75587,3986.7,3986.2,0.77]
[1733562263802,0.7744,3987.2,3986.2,0.77]
[1733562264008,0.86872892,3987.1,3986.2,0.77]
[1733562264179,1.8223842,3987.2,3986.2,0.77]
[1733562264427,0.7744,3987.2,3986.2,0.77]
[1733562264616,0.86885213,3987.1,3986.2,1.48738862]
[1733562264770,1.8223842,3987.2,3986.2,0.77]
[1733562264971,1.75576,3986.9,3986.2,0.77]
[1733562265165,1.75581,3986.8,3986.2,0.77]
[1733562266269,1.8223842,3987.2,3986.2,0.77]
[1733562266470,1.75575,3986.9,3986.2,0.77]
[1733562266692,1.75581,3986.8,3986.2,0.77]
[1733562267084,2.45987803,3987.2,3986.2,0.77]
[1733562267289,2.62474287,3987.1,3986.2,0.77]
[1733562267489,1.7557,3987.1,3986.2,0.77]
[1733562268376,1.7557,3987.1,3986.3,0.77]
[1733562268968,1.75557,3987.3,3986.3,0.77]
[1733562269173,0.8690832,3987.2,3986.4,0.77]
[1733562269408,2.27304202,3987.4,3986.5,0.77]
[1733562269581,0.86908103,3987.3,3986.5,0.77]
[1733562269799,1.22505782,3987.4,3986.5,0.77]
[1733562269982,1.22505782,3987.4,3986.8,2.35482018]
[1733562270181,1.22505782,3987.4,3986.9,0.77]
[1733562270396,1.22505782,3987.4,3987.0,0.31248202]
[1733562270804,1.22505782,3987.4,3986.9,1.856523]
[1733562272608,1.75549,3987.5,3986.9,1.856523]
[1733562273903,1.0479842,3987.8,3986.9,1.856523]
[1733562274080,3.92721562,3987.7,3986.9,1.856523]
[1733562274430,1.75539,3987.7,3986.9,1.856523]
[1733562274609,1.0479842,3987.9,3987.2,1.086523]
[1733562274812,2.17160358,3987.8,3987.2,1.086523]
[1733562274997,1.7554,3987.7,3987.2,1.086523]
[1733562275995,1.7554,3987.7,3987.3,0.7825]
[1733562277019,1.0479842,3988.0,3987.3,0.7825]
[1733562277320,2.8032142,3988.1,3987.3,0.9694023]
[1733562277528,1.75523,3988.1,3987.3,0.9694023]
[1733562278311,1.75523,3988.1,3987.3,0.7179063]
[1733562282630,1.75523,3988.1,3987.4,0.7688]
[1733562283296,1.75527,3988.0,3987.4,0.7688]
[1733562283635,1.75531,3987.9,3987.4,0.7688]
[1733562285426,1.75522,3988.1,3987.5,1.086523]
[1733562285606,1.75522,3988.1,3987.6,0.1855323]
[1733562285799,1.75522,3988.1,3987.5,1.086523]
[1733562286433,1.75514,3988.3,3987.5,1.086523]
[1733562286840,0.7728,3988.4,3987.5,1.086523]
[1733562286998,1.75518,3988.2,3987.5,1.086523]
[1733562288333,1.75518,3988.2,3987.6,0.8185]
[1733562291009,1.7552,3988.2,3987.6,0.8185]
[1733562291204,1.75523,3988.1,3987.6,0.8185]
[1733562293357,1.75523,3988.1,3987.7,1.086523]
[1733562293707,1.75523,3988.1,3987.6,0.8185]
[1733562297736,1.22470929,3988.5,3988.0,1.086523]
[1733562297921,1.7551,3988.4,3988.0,1.086523]
[1733562298329,1.22470929,3988.5,3988.0,1.086523]
[1733562298330,1.22470929,3988.5,3988.1,0.7695]
[1733562298964,2.97974929,3988.5,3988.1,0.7695]
[1733562299320,1.22470929,3988.5,3988.1,0.7695]
[1733562299657,1.22470929,3988.5,3988.3,1.086523]
[1733562301950,1.22470929,3988.5,3988.1,0.7695]
[1733562302164,1.75509,3988.4,3988.1,0.7695]
[1733562303464,1.75524,3988.1,3987.7,0.8127]
[1733562304368,2.97975929,3988.5,3987.9,0.7785]
[1733562305466,1.75513,3988.3,3987.9,0.7785]
[1733562306996,2.00110929,3988.5,3987.9,0.7785]
[1733562307152,1.75516,3988.3,3987.9,0.7785]
[1733562307979,1.75518,3988.2,3987.9,0.7785]
[1733562308139,1.75537,3987.8,3987.6,0.7785]
[1733562308340,1.75537,3987.8,3987.3,1.865023]
[1733562309176,2.53177,3987.8,3987.2,1.086523]
[1733562310413,1.75539,3987.7,3987.0,0.7785]
[1733562310620,1.75548,3987.5,3987.0,1.865023]
[1733562312022,0.03134892,3987.7,3987.0,1.865023]
[1733562312194,1.75551,3987.5,3987.0,1.865023]
[1733562313485,1.75553,3987.4,3987.0,1.865023]
[1733562315411,0.7764,3987.8,3987.0,1.865023]
[1733562315412,1.75544,3987.6,3987.0,1.865023]
[1733562315797,0.7764,3987.8,3987.0,1.865023]
[1733562316138,1.75548,3987.5,3987.0,1.865023]
[1733562317311,1.75537,3987.8,3987.3,1.086523]
[1733562319449,1.75537,3987.8,3987.4,0.7748]
[1733562320445,1.75544,3987.6,3987.4,0.7748]
[1733562320665,1.75544,3987.6,3987.3,1.086523]
[1733562320903,1.75544,3987.6,3987.0,1.086523]
[1733562321012,1.75544,3987.6,3987.0,1.861323]
[1733562322434,1.75544,3987.6,3987.0,2.45236191]
[1733562324347,1.75544,3987.6,3987.0,1.861323]
[1733562326751,1.75543,3987.7,3987.0,1.861323]
[1733562326954,0.8002,3988.0,3987.0,1.861323]
[1733562326955,0.03134901,3987.6,3987.0,1.861323]
[1733562327157,1.75556,3987.4,3987.0,1.086523]
[1733562327621,0.8002,3987.5,3987.0,1.086523]
[1733562327622,1.75557,3987.3,3987.0,1.086523]
[1733562328049,0.8002,3987.5,3987.0,1.086523]
[1733562328267,2.5557,3987.5,3987.0,1.086523]
[1733562332277,1.75554,3987.4,3987.0,1.086523]
[1733562332600,0.09253299,3987.3,3987.0,1.086523]
[1733562333447,0.09253299,3987.3,3986.7,0.7748]
[1733562333448,0.1238821,3987.3,3986.7,0.7748]
[1733562333775,0.9499821,3987.3,3986.7,1.861323]
[1733562333932,2.7055521,3987.3,3986.7,0.7748]
[1733562334134,1.75575,3986.9,3986.3,1.086523]
[1733562334384,1.75575,3986.9,3986.3,1.887323]
[1733562334385,0.0936592,3986.8,3986.3,1.887323]
[1733562335687,0.0936592,3986.8,3986.6,1.086523]
[1733562335845,1.8494492,3986.8,3986.6,1.086523]
[1733562342692,1.75583,3986.7,3986.6,1.086523]
[1733562343002,1.84947969,3986.7,3986.6,1.086523]
[1733562344520,0.09364969,3986.7,3986.3,1.887323]
[1733562344814,1.75593,3986.5,3986.3,1.887323]
[1733562345120,0.09348058,3986.4,3986.3,1.887323]
[1733562345333,1.84945058,3986.4,3985.8,0.7908]
[1733562345627,1.84945058,3986.4,3986.2,1.086523]
[1733562346800,1.75601,3986.3,3986.2,1.086523]
[1733562347219,1.8492184,3986.3,3986.2,1.086523]
[1733562347489,1.75615,3986.0,3985.6,0.7908]
[1733562347716,0.09312963,3985.9,3985.8,1.086523]
[1733562348096,0.8021,3986.7,3985.8,1.086523]
[1733562348320,5.44704345,3987.6,3985.8,1.086523]
[1733562348321,1.75596,3986.5,3986.2,1.086523]
[1733562348631,2.8036642,3987.1,3986.2,1.086523]
[1733562348632,0.09317721,3986.4,3986.3,0.7908]
[1733562349136,1.75584,3986.7,3986.3,0.7908]
[1733562349431,0.09314021,3986.4,3986.3,0.7908]
[1733562349586,1.75584,3986.7,3986.3,0.7908]
[1733562349791,0.09315924,3986.6,3986.3,0.7908]
[1733562353711,1.84904924,3986.6,3986.3,0.7908]
[1733562354719,0.09315924,3986.6,3986.3,0.7908]
[1733562355141,1.75579,3986.8,3986.3,0.7908]
[1733562355443,0.0931696,3986.7,3986.3,0.7908]
[1733562355599,1.8490196,3986.7,3986.3,0.7908]
[1733562355897,0.09316008,3986.6,3986.3,0.7908]
[1733562356111,1.75588,3986.6,3986.2,1.086523]
[1733562356559,0.09315057,3986.5,3986.2,1.086523]
[1733562358832,1.75584,3986.7,3986.0,0.8332]
[1733562359144,1.75584,3986.7,3986.1,0.59687891]
[1733562359340,0.09313418,3986.6,3986.1,0.59687891]
[1733562360224,0.09313418,3986.6,3986.2,1.086523]
[1733562360863,1.75575,3986.9,3986.2,1.086523]
[1733562361027,0.09312467,3986.5,3986.2,1.086523]
[1733562361227,1.75575,3986.9,3986.3,0.55166019]
[1733562361433,0.09311515,3986.4,3986.2,1.086523]
[1733562361632,1.75579,3986.8,3986.2,1.086523]
[1733562361835,0.09310564,3986.3,3986.2,1.086523]
[1733562362308,1.75579,3986.8,3986.2,1.086523]
[1733562362622,0.0931437,3986.7,3986.2,1.086523]
[1733562362861,0.0931437,3986.7,3986.2,1.2784953]
[1733562363255,1.7557,3987.0,3986.2,1.2784953]
[1733562363438,0.09313418,3986.6,3986.2,1.086523]
[1733562363762,0.09312467,3986.5,3986.2,1.086523]
[1733562363964,1.7557,3987.0,3986.2,1.086523]
[1733562364270,1.84891272,3986.9,3986.3,0.7939]
[1733562368862,0.09316272,3986.9,3986.3,0.7939]
[1733562369040,0.09316272,3986.9,3986.3,0.9819423]
[1733562369245,1.75566,3987.1,3986.3,0.9819423]
[1733562369452,0.09304031,3986.8,3986.3,0.7939]
[1733562369820,0.09303079,3986.7,3986.3,0.7939]
[1733562369987,0.09303079,3986.7,3986.4,1.086523]
[1733562370144,2.8035742,3987.3,3986.4,1.086523]
[1733562370348,2.26469758,3987.2,3986.4,1.086523]
[1733562370692,0.86864769,3987.1,3986.5,0.3636473]
[1733562370840,0.09307836,3987.2,3986.5,0.3636473]
[1733562371044,0.09292984,3987.0,3986.5,0.3636473]
[1733562371244,0.09293935,3987.1,3986.5,0.3636473]
[1733562371485,0.09292032,3986.9,3986.5,0.3636473]
[1733562371653,0.09292984,3987.0,3986.4,1.086523]
[1733562371982,0.09297212,3986.9,3986.4,1.086523]
[1733562372154,1.75566,3987.1,3986.4,1.086523]
[1733562372355,0.09298164,3987.0,3986.4,1.086523]
[1733562374097,0.09298164,3987.0,3986.3,0.7939]
[1733562374394,0.09298164,3987.0,3986.3,1.56246291]
[1733562376490,0.09298164,3987.0,3986.4,0.7991]
[1733562377951,0.09298164,3987.0,3986.4,4.086523]
[1733562378173,1.0479842,3987.2,3986.5,0.7991]
[1733562378387,2.26708335,3987.1,3986.5,0.7991]
[1733562378591,0.09299855,3987.1,3986.7,0.7991]
[1733562379092,0.09299855,3987.1,3986.8,0.7666]
[1733562379451,1.0479842,3987.3,3986.8,0.7666]
[1733562379692,0.09298904,3987.0,3986.8,0.7666]
[1733562379862,1.0479842,3987.3,3986.8,0.7666]
[1733562380066,0.09302762,3986.9,3986.8,1.31894482]
[1733562380384,2.98032882,3987.6,3986.9,0.7666]
[1733562380694,1.22485882,3987.6,3987.3,1.086523]
[1733562380898,1.22485882,3987.6,3987.4,0.7666]
[1733562381513,1.0479842,3988.1,3987.4,0.7666]
[1733562381514,1.0479842,3988.1,3987.4,1.05681891]
[1733562381718,0.09006005,3987.5,3987.4,1.05681891]
[1733562382028,1.75523,3988.1,3987.5,0.7666]
[1733562382310,2.36117631,3988.4,3987.6,1.086523]
[1733562382311,2.8030942,3988.4,3987.6,1.086523]
[1733562382520,1.75511,3988.4,3987.7,0.7666]
[1733562382813,1.75511,3988.4,3987.7,1.28093419]
[1733562383018,1.75514,3988.3,3987.7,1.28093419]